bitfinex/quotes_SOLUSD_20220207
["timestamp","ask_amount","ask_price","bid_price","bid_amount"]
[1644203965910,44.10053389,116.85,116.74,1.16891082]
[1644203966113,42.03917165,116.82,116.74,14.01611082]
[1644203966310,42.28917165,116.82,116.74,12.8472]
[1644203967212,12.8482,116.81,116.73,47.1175895]
[1644203967413,41.93696193,116.8,116.73,47.1175895]
[1644203967610,41.93696193,116.8,116.72,14.01741082]
[1644203967810,42.18696193,116.8,116.72,14.01741082]
[1644203968010,41.93696193,116.8,116.72,14.01741082]
[1644203968210,4.282,116.87,116.73,65.99891082]
[1644203968410,0.1,116.88,116.73,65.99891082]
[1644203968411,48.7958,116.9,116.77,12.8381]
[1644203968712,0.1,116.89,116.78,17.77791082]
[1644203968912,0.1,116.89,116.79,1.16891082]
[1644203969114,43.59373234,116.89,116.8,49.08190623]
[1644203969314,0.1,116.88,116.81,12.33]
[1644203969614,0.1,116.88,116.82,45.15972838]
[1644203969814,0.1,116.88,116.82,49.68672838]
[1644203970416,0.1,116.88,116.82,4.527]
[1644203970616,0.1,116.88,116.83,12.834]
[1644203973017,0.1,116.88,116.83,7.834]
[1644203973717,0.1,116.88,116.84,2.16357196]
[1644203973916,0.1,116.88,116.85,12.8354]
[1644203974217,46.54680118,116.87,116.85,12.8354]
[1644203974417,46.54680118,116.87,116.82,42.7799]
[1644203974820,46.54680118,116.87,116.82,43.0299]
[1644203975219,46.54680118,116.87,116.82,42.7799]
[1644203975420,46.54680118,116.87,116.81,4.279]
[1644203975620,46.54680118,116.87,116.79,1.16891082]
[1644203975819,46.54680118,116.87,116.8,1.16891082]
[1644203976420,6.06439994,116.87,116.81,39.56962425]
[1644203976821,6.06439994,116.87,116.81,39.81962425]
[1644203977021,6.06439994,116.87,116.81,52.65892425]
[1644203977223,6.06439994,116.87,116.81,54.82249621]
[1644203977620,6.06439994,116.87,116.81,55.99140703]
[1644203978321,37.50048951,116.86,116.81,55.99140703]
[1644203978522,0.1,116.91,116.81,55.99140703]
[1644203978922,0.1,116.91,116.81,53.82783507]
[1644203979522,55.72789325,116.91,116.81,53.82783507]
[1644203979724,0.1,116.9,116.81,53.82783507]
[1644203979924,0.1,116.9,116.81,14.25821082]
[1644203980947,0.1,116.9,116.82,2.16357196]
[1644203981149,0.1,116.9,116.84,12.8363]
[1644203981950,12.938,116.9,116.81,1.16891082]
[1644203982150,41.28524033,116.89,116.8,1.16891082]
[1644203982350,0.1,116.88,116.8,1.16891082]
[1644203982549,0.1,116.88,116.79,1.16891082]
[1644203984051,12.9409,116.88,116.8,12.8401]
[1644203984252,42.79089325,116.87,116.79,1.16891082]
[1644203984655,55.37089325,116.87,116.78,1.16891082]
[1644203984854,55.37089325,116.87,116.77,1.16891082]
[1644203985253,12.844,116.85,116.77,1.16891082]
[1644203985454,35.60178801,116.84,116.77,1.16891082]
[1644203985652,35.60178801,116.84,116.76,1.16891082]
[1644203986253,48.44648801,116.84,116.76,1.16891082]
[1644203986454,48.69648801,116.84,116.76,1.16891082]
[1644203987462,54.69648801,116.84,116.75,1.16891082]
[1644203988859,67.02648801,116.84,116.74,1.16891082]
[1644203989060,66.52648801,116.84,116.73,1.16891082]
[1644203989263,12.85,116.8,116.73,1.16891082]
[1644203989459,45.27681977,116.79,116.72,1.16891082]
[1644203990260,45.27681977,116.79,116.7,37.16014578]
[1644203990461,51.27681977,116.79,116.7,0.25]
[1644203990663,58.12711977,116.79,116.69,14.67201251]
[1644203990863,58.37711977,116.79,116.69,12.33]
[1644203991061,45.27681977,116.79,116.7,20.88739226]
[1644203991260,45.27681977,116.79,116.7,17.1339]
[1644203991461,45.27681977,116.79,116.71,44.74445287]
[1644203991762,45.27681977,116.79,116.71,44.99445287]
[1644203992962,45.27681977,116.79,116.72,12.8484]
[1644203993164,45.27681977,116.79,116.73,35.3150417]
[1644203993563,45.27681977,116.79,116.69,14.67201251]
[1644203993765,45.27681977,116.79,116.69,14.92201251]
[1644203994064,45.27681977,116.79,116.72,12.8485]
[1644203994463,45.27681977,116.79,116.69,44.4526698]
[1644203994464,45.52681977,116.79,116.69,44.4526698]
[1644203994664,51.52681977,116.79,116.69,44.4526698]
[1644203995969,64.37701977,116.79,116.69,44.4526698]
[1644203996569,58.37701977,116.79,116.69,44.4526698]
[1644203996768,58.37701977,116.79,116.68,12.33]
[1644203996967,58.37701977,116.79,116.69,12.8521]
[1644203997368,64.37701977,116.79,116.69,12.8521]
[1644203999270,12.33,116.78,116.69,12.8521]
[1644203999671,12.8533,116.77,116.67,12.8536]
[1644204000070,13.1033,116.77,116.67,12.8536]
[1644204000271,38.53040299,116.76,116.67,12.8536]
[1644204000469,50.86040299,116.76,116.64,4.283]
[1644204000671,69.71430299,116.76,116.64,4.283]
[1644204001072,71.87787495,116.76,116.64,4.283]
[1644204001271,69.71430299,116.76,116.65,45.52426545]
[1644204001670,69.71430299,116.76,116.65,58.38006545]
[1644204002673,69.71430299,116.76,116.65,60.54363741]
[1644204002873,69.71430299,116.76,116.65,60.79363741]
[1644204003473,63.71430299,116.76,116.65,60.79363741]
[1644204004077,63.71430299,116.76,116.65,12.8558]
[1644204004276,63.71430299,116.76,116.63,12.8579]
[1644204004277,63.96430299,116.76,116.63,12.8579]
[1644204004573,63.96430299,116.76,116.62,4.284]
[1644204004778,63.96430299,116.76,116.59,2.34201251]
[1644204004779,4.284,116.75,116.59,2.34201251]
[1644204004974,4.284,116.75,116.58,2.34201251]
[1644204004975,12.8622,116.71,116.58,2.34201251]
[1644204005174,54.12117976,116.7,116.59,40.05063212]
[1644204005374,54.12117976,116.7,116.59,44.33563212]
[1644204005673,0.31965787,116.69,116.59,4.285]
[1644204005874,25.1929,116.68,116.55,2.96195793]
[1644204006173,31.1929,116.68,116.55,0.61994542]
[1644204006376,31.4429,116.68,116.55,0.61994542]
[1644204006574,35.74016021,116.67,116.56,47.65262186]
[1644204006775,0.32173663,116.65,116.56,47.65262186]
[1644204006975,44.39770423,116.64,116.56,47.65262186]
[1644204007176,57.26470423,116.64,116.56,47.65262186]
[1644204007377,57.51470423,116.64,116.56,47.65262186]
[1644204007575,44.64770423,116.64,116.56,60.51812186]
[1644204007776,44.39770423,116.64,116.56,60.51812186]
[1644204008777,44.39770423,116.64,116.56,60.76812186]
[1644204009979,12.33,116.66,116.59,12.8622]
[1644204010180,30.4442,116.67,116.59,12.8622]
[1644204010380,24.4442,116.67,116.59,12.8622]
[1644204010879,46.52268581,116.66,116.6,35.16520157]
[1644204011280,46.52268581,116.66,116.6,48.02690157]
[1644204011489,46.52268581,116.66,116.6,12.8617]
[1644204012388,24.4442,116.67,116.6,12.8617]
[1644204012590,12.33,116.68,116.6,12.8617]
[1644204012790,12.33,116.7,116.6,15.02527196]
[1644204012989,48.2591,116.72,116.61,4.285]
[1644204013190,48.2591,116.72,116.64,12.8557]
[1644204013389,37.81302072,116.71,116.64,12.8557]
[1644204013801,37.81302072,116.71,116.62,44.73453085]
[1644204014800,37.81302072,116.71,116.62,57.84253085]
[1644204014999,37.81302072,116.71,116.62,57.59253085]
[1644204015201,38.06302072,116.71,116.62,59.75610281]
[1644204015601,38.06302072,116.71,116.62,12.858]
[1644204016002,50.92212072,116.71,116.62,12.858]
[1644204016303,56.92212072,116.71,116.62,12.858]
[1644204016504,50.92212072,116.71,116.63,34.26646376]
[1644204016702,50.92212072,116.71,116.63,47.12516376]
[1644204017903,50.92212072,116.71,116.63,12.8587]
[1644204018904,69.25212072,116.71,116.6,4.285]
[1644204019108,69.25212072,116.71,116.58,45.21301251]
[1644204019303,69.25212072,116.71,116.57,4.50558447]
[1644204019503,73.53712072,116.71,116.57,2.34201251]
[1644204019704,73.53712072,116.71,116.57,6.08110643]
[1644204019904,73.53712072,116.71,116.57,3.73909392]
[1644204020108,75.70069268,116.71,116.57,56.014673]
[1644204020308,75.70069268,116.71,116.57,12.865]
[1644204020509,0.31231884,116.69,116.55,2.96195793]
[1644204020706,12.8694,116.65,116.55,0.61994542]
[1644204020908,25.1994,116.65,116.55,0.61994542]
[1644204021107,31.4494,116.65,116.55,0.61994542]
[1644204021316,37.43780788,116.64,116.54,12.8692]
[1644204021821,43.68780788,116.64,116.54,12.8692]
[1644204022024,12.8693,116.62,116.5,4.288]
[1644204022221,0.30221838,116.6,116.46,0.61994542]
[1644204022420,42.9235,116.58,116.46,13.49684542]
[1644204022621,12.33,116.57,116.46,0.61994542]
[1644204022825,12.58,116.57,116.46,0.61994542]
[1644204023023,58.76388212,116.56,116.46,0.61994542]
[1644204023222,12.33,116.55,116.47,39.45208275]
[1644204023422,40.0840126,116.54,116.46,0.61994542]
[1644204023620,12.33,116.53,116.46,0.61994542]
[1644204023823,12.58,116.53,116.46,0.61994542]
[1644204024225,25.4599,116.53,116.46,0.61994542]
[1644204024429,37.57191475,116.52,116.46,0.61994542]
[1644204024624,49.90191475,116.52,116.46,0.61994542]
[1644204025628,49.90191475,116.52,116.45,45.81345488]
[1644204026129,49.90191475,116.52,116.45,0.14757042]
[1644204026529,55.90191475,116.52,116.45,0.14757042]
[1644204026729,56.15191475,116.52,116.45,0.14757042]
[1644204028132,56.15191475,116.52,116.42,12.46714994]
[1644204028934,69.03261475,116.52,116.42,12.46714994]
[1644204029332,55.90191475,116.52,116.42,11.96714994]
[1644204029536,55.90191475,116.52,116.43,51.77689056]
[1644204029735,49.90191475,116.52,116.43,52.02689056]
[1644204029935,32.73699644,116.52,116.45,47.43015073]
[1644204030536,32.73699644,116.52,116.44,4.292]
[1644204030739,32.73699644,116.52,116.43,53.88287172]
[1644204030935,32.73699644,116.52,116.44,4.292]
[1644204031539,32.73699644,116.52,116.45,47.03752284]
[1644204032772,12.33,116.52,116.45,60.16512284]
[1644204033060,23.0222,116.6,116.45,131.79306652]
[1644204033261,12.33,116.58,116.45,131.79306652]
[1644204033664,44.74041718,116.57,116.45,131.79306652]
[1644204033861,44.74041718,116.57,116.46,3.02849613]
[1644204034062,44.74041718,116.57,116.49,12.87]
[1644204034263,44.74041718,116.57,116.49,51.38506962]
[1644204034666,44.74041718,116.57,116.49,53.54864158]
[1644204035462,44.74041718,116.57,116.49,12.87]
[1644204035862,44.99041718,116.57,116.49,12.87]
[1644204036062,12.33,116.56,116.47,12.8748]
[1644204036465,21.90188727,116.55,116.48,39.46568029]
[1644204036666,21.90188727,116.55,116.48,41.62925225]
[1644204037765,21.69934781,116.55,116.48,52.33928029]
[1644204038066,34.02934781,116.55,116.48,12.8736]
[1644204038266,34.27934781,116.55,116.43,58.17577172]
[1644204038467,34.27934781,116.55,116.43,47.2114]
[1644204038665,40.27934781,116.55,116.43,47.2114]
[1644204038865,40.27934781,116.55,116.44,47.11263652]
[1644204039267,34.02934781,116.55,116.44,47.11263652]
[1644204039466,46.90684781,116.55,116.46,61.64243609]
[1644204040167,52.90684781,116.55,116.46,61.64243609]
[1644204040567,52.90684781,116.55,116.46,48.76653609]
[1644204040970,52.90684781,116.55,116.44,12.8783]
[1644204041569,53.15684781,116.55,116.44,12.8783]
[1644204041868,52.90684781,116.55,116.45,45.20833262]
[1644204042068,52.90684781,116.55,116.46,12.8764]
[1644204042267,52.90684781,116.55,116.47,41.98882215]
[1644204042471,52.90684781,116.55,116.46,12.8764]
[1644204043570,40.02934781,116.55,116.47,49.02481059]
[1644204044172,40.02934781,116.55,116.47,12.8755]
[1644204044372,40.27934781,116.55,116.43,55.32612145]
[1644204044572,40.27934781,116.55,116.43,55.57612145]
[1644204044770,40.27934781,116.55,116.43,61.57612145]
[1644204044974,40.27934781,116.55,116.43,55.57612145]
[1644204045170,40.27934781,116.55,116.44,36.82664763]
[1644204045371,40.02934781,116.55,116.44,41.36864763]
[1644204045571,34.02934781,116.55,116.44,41.36864763]
[1644204045971,34.02934781,116.55,116.45,12.877]
[1644204046171,34.02934781,116.55,116.46,34.2487371]
[1644204046371,12.33,116.55,116.46,34.2487371]
[1644204046571,24.4948,116.58,116.47,2.16357196]
[1644204046771,24.4948,116.58,116.48,4.29]
[1644204046972,42.8248,116.58,116.47,2.16357196]
[1644204047374,43.79235959,116.57,116.48,36.48041546]
[1644204047973,43.79235959,116.57,116.48,12.8736]
[1644204048175,58.53593155,116.57,116.45,6.45357196]
[1644204048373,64.53593155,116.57,116.44,10.24214949]
[1644204048976,64.53593155,116.57,116.45,46.72216792]
[1644204049274,77.41083155,116.57,116.45,59.85006792]
[1644204049677,77.41083155,116.57,116.46,2.82794049]
[1644204049876,77.41083155,116.57,116.45,59.60006792]
[1644204051479,77.41083155,116.57,116.46,2.83238641]
[1644204051883,75.24725959,116.57,116.46,2.83238641]
[1644204052480,74.24725959,116.57,116.46,2.83238641]
[1644204052682,74.24725959,116.57,116.47,38.21504883]
[1644204053682,74.24725959,116.57,116.45,12.8779]
[1644204053886,78.53825959,116.57,116.46,2.83366293]
[1644204054287,78.53825959,116.57,116.46,1.87374693]
[1644204054586,78.28825959,116.57,116.46,14.75044693]
[1644204054888,61.12235959,116.57,116.47,47.74009213]
[1644204055085,61.12235959,116.57,116.47,52.03109213]
[1644204055288,61.12235959,116.57,116.47,52.28109213]
[1644204055485,61.12235959,116.57,116.47,47.99009213]
[1644204055687,61.12235959,116.57,116.49,12.8733]
[1644204055885,42.79235959,116.57,116.5,44.19956851]
[1644204057085,42.79235959,116.57,116.5,12.872]
[1644204058088,42.79235959,116.57,116.5,56.5943846]
[1644204059594,46.8836,116.6,116.5,56.5943846]
[1644204059795,0.25,116.59,116.5,56.8443846]
[1644204060694,34.52440055,116.59,116.5,56.8443846]
[1644204062195,34.77440055,116.59,116.5,56.8443846]
[1644204065002,34.52440055,116.59,116.5,56.8443846]
[1644204066004,6.0,116.59,116.5,56.8443846]
[1644204066205,29.1257,116.64,116.5,117.50795656]
[1644204066417,12.33,116.63,116.51,4.29]
[1644204066617,18.33,116.63,116.51,10.29]
[1644204066817,18.33,116.63,116.51,10.54]
[1644204067018,40.27919444,116.62,116.52,47.22494077]
[1644204067217,40.27919444,116.62,116.52,47.47494077]
[1644204067418,46.27919444,116.62,116.52,47.47494077]
[1644204069021,12.33,116.61,116.5,4.289]
[1644204069222,31.2004,116.61,116.51,0.25]
[1644204069424,31.4504,116.61,116.51,0.25]
[1644204069923,24.16057055,116.6,116.51,0.25]
[1644204070124,30.16057055,116.6,116.51,0.25]
[1644204070425,30.41057055,116.6,116.5,38.10971583]
[1644204071025,30.41057055,116.6,116.5,44.10971583]
[1644204072024,30.41057055,116.6,116.5,43.85971583]
[1644204072224,30.41057055,116.6,116.5,37.85971583]
[1644204072425,30.41057055,116.6,116.5,43.85971583]
[1644204072825,24.16057055,116.6,116.5,46.02328779]
[1644204073025,12.33,116.62,116.5,50.31328779]
[1644204073229,18.33,116.62,116.51,56.789]
[1644204073530,39.5257,116.67,116.53,52.5]
[1644204073727,35.2367,116.67,116.53,65.08]
[1644204073926,78.09452444,116.67,116.54,107.79530058]
[1644204074127,78.09452444,116.67,116.54,113.79530058]
[1644204074327,78.09452444,116.67,116.55,12.28850479]
[1644204074527,78.09452444,116.67,116.56,46.22295534]
[1644204074728,78.09452444,116.67,116.56,58.9235273]
[1644204075128,78.09452444,116.67,116.58,35.66010647]
[1644204075330,55.18782444,116.67,116.58,35.91010647]
[1644204075529,61.18782444,116.67,116.58,35.91010647]
[1644204075730,71.5245,116.71,116.58,38.07367843]
[1644204076132,54.2299,116.71,116.58,38.07367843]
[1644204076329,54.2299,116.71,116.58,37.82367843]
[1644204076530,12.86,116.7,116.58,37.82367843]
[1644204076731,39.92439843,116.69,116.58,37.82367843]
[1644204077231,45.92439843,116.69,116.58,37.82367843]
[1644204077732,58.78629843,116.69,116.58,37.82367843]
[1644204077933,58.78629843,116.69,116.58,35.66010647]
[1644204078534,71.36629843,116.69,116.57,12.8626]
[1644204078734,73.52987039,116.69,116.55,20.40993283]
[1644204078932,23.1872,116.68,116.55,10.285]
[1644204079132,12.8668,116.65,116.55,10.285]
[1644204079332,13.1168,116.65,116.55,10.285]
[1644204079532,24.51536656,116.64,116.55,48.74507061]
[1644204079831,24.76536656,116.64,116.55,4.285]
[1644204080034,30.76536656,116.64,116.55,4.285]
[1644204080332,12.33,116.63,116.55,4.285]
[1644204080835,35.85211268,116.62,116.55,4.285]
[1644204081034,35.85211268,116.62,116.52,37.88909815]
[1644204081235,42.10211268,116.62,116.52,37.88909815]
[1644204082036,54.97191268,116.62,116.52,37.88909815]
[1644204085337,54.72191268,116.62,116.52,50.75799815]
[1644204085541,41.85211268,116.62,116.52,53.17157011]
[1644204085739,41.85211268,116.62,116.52,51.00799815]
[1644204086140,41.85211268,116.62,116.52,59.17157011]
[1644204086342,6.0,116.62,116.52,69.29440849]
[1644204086741,30.2382,116.63,116.52,69.29440849]
[1644204086942,24.2382,116.63,116.54,12.8661]
[1644204087342,48.30705513,116.62,116.54,54.92813316]
[1644204088244,54.55705513,116.62,116.54,54.92813316]
[1644204088643,48.55705513,116.62,116.54,54.92813316]
[1644204088846,54.55705513,116.62,116.49,16.618]
[1644204089043,34.9815,116.61,116.49,6.45157196]
[1644204089245,12.8742,116.58,116.49,6.45157196]
[1644204089543,12.33,116.57,116.49,4.288]
[1644204089747,16.13270986,116.56,116.49,47.31888901]
[1644204089943,16.13270986,116.56,116.49,43.03088901]
[1644204090145,22.38270986,116.56,116.49,43.03088901]
[1644204090745,35.25850986,116.56,116.49,43.03088901]
[1644204093548,35.00850986,116.56,116.49,43.03088901]
[1644204093747,22.13270986,116.56,116.49,43.03088901]
[1644204094748,22.38270986,116.56,116.49,43.03088901]
[1644204095348,22.13270986,116.56,116.49,43.03088901]
[1644204095949,35.00830986,116.56,116.49,43.03088901]
[1644204096149,35.25830986,116.56,116.49,43.03088901]
[1644204096751,35.25830986,116.56,116.48,12.8754]
[1644204097150,45.78315239,116.58,116.48,12.8754]
[1644204097353,12.33,116.57,116.48,12.8754]
[1644204097854,56.21919801,116.57,116.48,48.74446849]
[1644204098052,12.8756,116.56,116.48,48.74446849]
[1644204098252,4.41785712,116.55,116.48,48.74446849]
[1644204098852,12.8756,116.56,116.48,48.74446849]
[1644204099055,12.8756,116.56,116.48,48.54192902]
[1644204099253,19.1256,116.56,116.48,48.54192902]
[1644204099856,35.65263313,116.55,116.48,48.29192902]
[1644204100075,41.65263313,116.55,116.48,48.29192902]
[1644204100275,41.90263313,116.55,116.48,48.29192902]
[1644204101778,6.25,116.55,116.48,48.29192902]
[1644204102177,19.127,116.55,116.48,48.29192902]
[1644204102778,60.21169168,116.55,116.48,48.29192902]
[1644204103478,12.877,116.55,116.48,48.29192902]
[1644204103680,12.33,116.56,116.48,48.54192902]
[1644204103980,58.11315239,116.58,116.48,48.54192902]
[1644204104382,96.80404537,116.58,116.48,48.54192902]
[1644204104780,97.05404537,116.58,116.48,48.54192902]
[1644204104981,109.67754537,116.58,116.48,48.54192902]
[1644204105181,45.78315239,116.58,116.48,50.70550098]
[1644204105381,12.33,116.61,116.48,109.20550098]
[1644204105582,12.33,116.62,116.49,4.29]
[1644204105781,12.33,116.62,116.52,12.8677]
[1644204106080,52.34156739,116.62,116.53,41.29663678]
[1644204106280,46.34156739,116.62,116.53,84.43683678]
[1644204107481,46.59156739,116.62,116.55,12.8671]
[1644204107681,46.34156739,116.62,116.55,60.14557361]
[1644204108282,12.33,116.62,116.55,60.14557361]
[1644204109083,12.58,116.62,116.55,60.14557361]
[1644204109283,54.17786382,116.62,116.55,60.14557361]
[1644204109585,12.33,116.62,116.55,60.39557361]
[1644204109888,12.33,116.65,116.55,60.39557361]
[1644204110082,18.33,116.65,116.55,60.39557361]
[1644204110581,38.71061693,116.64,116.55,60.39557361]
[1644204114485,38.71061693,116.64,116.55,64.68357361]
[1644204114687,35.8199,116.65,116.55,64.68357361]
[1644204114888,24.5051,116.66,116.55,72.84714557]
[1644204115290,12.33,116.68,116.55,72.84714557]
[1644204115691,42.46010947,116.67,116.55,72.84714557]
[1644204116290,42.46010947,116.67,116.55,72.59714557]
[1644204116590,48.46010947,116.67,116.55,64.43357361]
[1644204116793,12.33,116.66,116.55,64.43357361]
[1644204116992,5.84694566,116.65,116.55,60.14557361]
[1644204117191,30.06364566,116.65,116.55,60.14557361]
[1644204117392,36.31364566,116.65,116.55,60.14557361]
[1644204117589,36.31364566,116.65,116.55,12.8671]
[1644204117790,48.64364566,116.65,116.55,12.8671]
[1644204118792,48.64364566,116.65,116.55,47.34918704]
[1644204118991,24.17694566,116.65,116.55,47.34918704]
[1644204119193,24.42694566,116.65,116.55,47.34918704]
[1644204119794,12.33,116.65,116.55,47.34918704]
[1644204120000,6.0,116.65,116.55,47.34918704]
[1644204120196,65.5549,116.67,116.55,53.800759]
[1644204120396,18.33,116.67,116.55,53.550759]
[1644204120595,2.16357196,116.66,116.55,57.38718704]
[1644204120796,37.65316904,116.65,116.55,53.09918704]
[1644204120995,49.98316904,116.65,116.55,53.09918704]
[1644204121197,55.98316904,116.65,116.55,53.09918704]
[1644204121396,43.65316904,116.65,116.55,53.09918704]
[1644204121597,37.65316904,116.65,116.55,53.09918704]
[1644204121798,37.90316904,116.65,116.55,53.34918704]
[1644204121997,37.90316904,116.65,116.56,4.288]
[1644204121998,37.65316904,116.65,116.56,4.288]
[1644204122197,37.65316904,116.65,116.58,12.8626]
[1644204122400,35.0695,116.68,116.58,12.8626]
[1644204122600,41.0695,116.68,116.58,13.1126]
[1644204123401,36.69192831,116.67,116.59,44.39241775]
[1644204123602,36.69192831,116.67,116.6,12.8632]
[1644204123801,36.94192831,116.67,116.6,12.8632]
[1644204124404,42.94192831,116.67,116.6,12.8632]
[1644204125405,42.69192831,116.67,116.6,12.8632]
[1644204126407,42.69192831,116.67,116.58,12.8646]
[1644204126706,12.33,116.66,116.55,4.285]
[1644204126906,35.5842,116.66,116.55,4.285]
[1644204127106,41.8342,116.66,116.55,4.285]
[1644204127307,11.61512682,116.65,116.56,34.78764694]
[1644204127506,12.33,116.64,116.56,34.78764694]
[1644204127708,36.69192831,116.63,116.56,34.78764694]
[1644204127906,36.69192831,116.63,116.56,47.65524694]
[1644204128106,42.94192831,116.63,116.56,47.65524694]
[1644204128908,42.94192831,116.63,116.56,12.8676]
[1644204129307,42.94192831,116.63,116.54,12.8689]
[1644204129909,42.94192831,116.63,116.54,58.61538675]
[1644204130917,12.33,116.62,116.54,12.8689]
[1644204131116,18.33,116.62,116.51,44.07923304]
[1644204131422,41.478,116.62,116.51,43.1488]
[1644204131821,41.478,116.62,116.49,47.02548812]
[1644204131822,64.1713,116.62,116.49,38.870305]
[1644204132022,64.1713,116.62,116.49,103.1260205]
[1644204132023,11.61512682,116.61,116.49,103.1260205]
[1644204132223,12.33,116.6,116.49,37.0232205]
[1644204132423,36.69192831,116.59,116.49,37.0232205]
[1644204132624,12.8766,116.58,116.49,35.84278746]
[1644204132826,11.61512682,116.57,116.49,35.84278746]
[1644204133224,17.86512682,116.57,116.49,48.71798746]
[1644204133832,17.86512682,116.57,116.49,13.1252]
[1644204134636,17.86512682,116.57,116.49,12.8752]
[1644204134834,32.35869878,116.57,116.48,1.18043304]
[1644204135035,32.35869878,116.57,116.47,17.1667]
[1644204135835,32.35869878,116.57,116.47,52.12027309]
[1644204136035,45.23649878,116.57,116.47,52.12027309]
[1644204136837,45.23649878,116.57,116.47,47.83027309]
[1644204138438,45.23649878,116.57,116.45,12.8788]
[1644204138639,23.7325,116.56,116.45,12.8788]
[1644204138839,25.2104,116.55,116.45,12.8788]
[1644204139040,27.37397196,116.55,116.45,12.8788]
[1644204139239,27.62397196,116.55,116.45,12.8788]
[1644204139440,38.85550027,116.54,116.44,35.69499224]
[1644204139639,12.33,116.53,116.44,35.69499224]
[1644204139838,12.58,116.53,116.44,35.69499224]
[1644204140039,11.61512682,116.52,116.44,35.69499224]
[1644204140239,11.86512682,116.52,116.44,35.69499224]
[1644204141041,11.86512682,116.52,116.44,48.57589224]
[1644204141849,0.25,116.52,116.44,48.57589224]
[1644204142046,36.3309,116.54,116.44,50.9894642]
[1644204142245,12.33,116.54,116.44,50.9894642]
[1644204142445,12.33,116.54,116.44,58.16989724]
[1644204142647,12.33,116.54,116.44,56.9894642]
[1644204143149,12.33,116.56,116.44,56.9894642]
[1644204143348,12.33,116.59,116.48,12.873]
[1644204143747,12.33,116.59,116.48,13.123]
[1644204144045,12.33,116.59,116.49,46.46080687]
[1644204144246,12.33,116.59,116.49,48.87437883]
[1644204144447,12.33,116.59,116.51,12.8724]
[1644204144849,12.33,116.59,116.51,13.1224]
[1644204145048,12.33,116.59,116.52,41.069881]
[1644204145248,12.33,116.59,116.52,41.319881]
[1644204146047,12.33,116.59,116.53,12.8703]
[1644204146248,22.7752,116.6,116.54,46.164008]
[1644204147249,22.7752,116.6,116.54,59.033608]
[1644204147450,12.33,116.61,116.54,59.033608]
[1644204147851,22.7941,116.62,116.54,59.033608]
[1644204149054,23.0441,116.62,116.54,59.033608]
[1644204149954,24.3658,116.63,116.54,59.283608]
[1644204150154,23.005,116.65,116.54,59.283608]
[1644204150354,35.335,116.65,116.54,67.44717996]
[1644204150553,41.335,116.65,116.54,67.44717996]
[1644204150755,23.3902,116.69,116.54,67.44717996]
[1644204150958,12.33,116.67,116.54,114.93207996]
[1644204151154,1.55422904,116.66,116.54,127.26207996]
[1644204151555,1.55422904,116.66,116.58,12.863]
[1644204151755,1.55422904,116.66,116.58,50.84662432]
[1644204151954,1.55422904,116.66,116.58,12.863]
[1644204152454,13.88422904,116.66,116.58,12.863]
[1644204152655,13.88422904,116.66,116.56,12.8667]
[1644204152855,13.88422904,116.66,116.56,58.95691626]
[1644204154056,20.13422904,116.66,116.56,58.95691626]
[1644204155257,43.54982904,116.66,116.56,59.20691626]
[1644204155455,37.54982904,116.66,116.56,61.37048822]
[1644204155655,37.54982904,116.66,116.56,59.20691626]
[1644204155864,37.54982904,116.66,116.56,12.8667]
[1644204156159,58.581401,116.66,116.54,12.8692]
[1644204156765,58.581401,116.66,116.55,47.70509077]
[1644204156967,82.914801,116.66,116.55,47.70509077]
[1644204157166,83.164801,116.66,116.55,47.70509077]
[1644204157570,83.164801,116.66,116.54,12.8692]
[1644204158379,83.164801,116.66,116.52,12.8711]
[1644204158577,241.622801,116.66,116.53,48.60480779]
[1644204162013,237.334801,116.66,116.53,48.60480779]
[1644204163515,235.17122904,116.66,116.53,61.47570779]
[1644204165516,237.334801,116.66,116.53,12.8709]
[1644204165718,237.334801,116.66,116.51,24.5388]
[1644204165719,12.8733,116.62,116.51,12.8722]
[1644204165919,12.33,116.61,116.51,12.8722]
[1644204166318,18.58,116.61,116.51,12.8722]
[1644204166520,36.17013073,116.6,116.51,53.41793436]
[1644204166719,54.75013073,116.6,116.51,53.41793436]
[1644204167320,54.50013073,116.6,116.51,53.41793436]
[1644204168828,54.75013073,116.6,116.51,53.41793436]
[1644204169827,18.33,116.6,116.51,53.66793436]
[1644204170028,23.4012,116.61,116.51,57.95693436]